Cogmind - Beta 10.2 @@@ ROGUE MODE // 2021.05.25 @ 19:40:24 Player: CrossedViper Result: Destroyed by S-27 Virus with Autogun Performance ------------- Evolutions (4) 2000 Regions Visited (16) 3200 Robots Destroyed (98) 490 Value Destroyed (3248) 3248 Prototype IDs (25) 500 Alien Tech Used (0) 0 Bonus (1798) 1798 TOTAL SCORE: 11236 Bonus ------- High Alert Combat Kills 412 Follower Combat Kills 35 Met Data Miner 300 Met Imprinter 300 Destroyed Z-Imprinter 1000 Friendly Fire -249 Cogmind --------- Core Integrity 0/850 Matter 300/300 Energy 14/100 System Corruption 2% Temperature Cool (0) Movement Hovering (76) Location -5/Proximity Caves Parts ------- > --- POWER (1) -------- (None) > --- PROPULSION (4) --- Combat Airjet Combat Airjet > --- UTILITY (7) ------ Experimental Heat Sink Experimental Heat Sink Medium Storage Unit Zionite Metafield Generator Surveybot 24 Chip > --- WEAPON (3) ------- CR-A16's Pointy Stick > --- INVENTORY (8) ---- System Mapper Deep Network Scanner Quantum Router Peak State ------------ > --- POWER ------------ Zionite Light DM Reactor > --- PROPULSION ------- Zionite Glidesys I Zionite Glidesys II Zionite Glidesys II > --- UTILITY ---------- Experimental Heat Sink High-capacity Storage Unit Zionite Biocell Zionite Metafield Generator Armor Integrity Analyzer Zionite Light Carapace Makeshift Hacking Suite > --- WEAPON ----------- Zionite Laser-M Power Sword CR-A16's Pointy Stick > --- INVENTORY -------- Zionite Light DM Reactor Zionite Light DM Reactor Zionite Glidesys II Experimental Heat Sink Experimental Heat Sink Surveybot 24 Scanner Surveybot 24 Chip Improved Maneuvering Thrusters Advanced Phase Shifter Zionite Light Carapace Hacking Drone Bay [Rating: 90] Favorites ----------- Power Light Angular Momentum Engine Engine Light Angular Momentum Engine Power Core Light Nuclear Core Reactor Zionite Light DM Reactor Propulsion Improved Treads Treads Improved Treads Leg Carbon-fiber Leg Wheel Compact Wheel Hover Unit Combat Airjet Utility Layered Light Armor Plating Device Improved Heat Sink Storage High-capacity Storage Unit Processor Armor Integrity Analyzer Hackware Hacking Suite Protection Layered Light Armor Plating Weapon Enhanced Autogun Energy Gun Zionite Laser-M Energy Cannon Light EM Pulse Cannon Ballistic Gun Enhanced Autogun Ballistic Cannon Improved Light Cannon Launcher Rocket Launcher Slashing Weapon Greatsword Piercing Weapon CR-A16's Pointy Stick Build | -11 -10 -10 -10 -9 -8 -7 -7 -7 -7 -7 -6 -6 -6 -6 -6 -5 ------- Run | Scr Mat Min Exi Min Mat Fac Low Low Zio Dee Pro Fac Low Low Dat Pro Slots Evolved 8 | . . . . . 4 2 . . . . . 2 . . . . Power . | . . . . . . . . . . . . . . . . . Propulsion 2 | . . . . . . 1 . . . . . 1 . . . . Utility 5 | . . . . . 3 1 . . . . . 1 . . . . Weapon 1 | . . . . . 1 . . . . . . . . . . . Parts Attached 138 | 7 5 3 1 1 31 14 1 11 3 25 . 26 7 1 . 2 Power 11 | 1 1 . . . 2 2 . 1 . 2 . 1 1 . . . Engine 7 | 1 . . . . 2 2 . 1 . 1 . . . . . . Core 1 | . 1 . . . . . . . . . . . . . . . Reactor 3 | . . . . . . . . . . 1 . 1 1 . . . Propulsion 31 | 3 . 1 . . 4 6 . 3 . 6 . 7 . . . 1 Treads 18 | 2 . 1 . . 4 6 . 3 . 2 . . . . . . Leg 1 | . . . . . . . . . . 1 . . . . . . Wheel 1 | 1 . . . . . . . . . . . . . . . . Hover 11 | . . . . . . . . . . 3 . 7 . . . 1 Flight . | . . . . . . . . . . . . . . . . . Utility 58 | 1 2 . 1 1 12 3 1 3 . 12 . 14 6 1 . 1 Device 22 | . . . . . 2 2 . 1 . 4 . 6 6 . . 1 Storage 7 | 1 . . 1 1 1 . . . . 1 . 1 . 1 . . Processor 6 | . 1 . . . 2 . . . . 1 . 2 . . . . Hackware 2 | . . . . . . . . . . . . 2 . . . . Protection 21 | . 1 . . . 7 1 1 2 . 6 . 3 . . . . Artifact . | . . . . . . . . . . . . . . . . . Weapon 38 | 2 2 2 . . 13 3 . 4 3 5 . 4 . . . . Energy Gun 7 | 1 . . . . 2 . . 1 1 2 . . . . . . Energy Cannon 2 | . 1 1 . . . . . . . . . . . . . . Ballistic Gun 15 | 1 . . . . 5 2 . 2 1 2 . 2 . . . . Ballistic Cannon 5 | . 1 1 . . 3 . . . . . . . . . . . Launcher 5 | . . . . . 3 1 . 1 . . . . . . . . Special Weapon . | . . . . . . . . . . . . . . . . . Impact Weapon . | . . . . . . . . . . . . . . . . . Slashing Weapon 2 | . . . . . . . . . . . . 2 . . . . Piercing Weapon 2 | . . . . . . . . . 1 1 . . . . . . Special Melee Weapon . | . . . . . . . . . . . . . . . . . Unidentified Prototypes 12 | . . . . . 2 1 . . . 8 . 1 . . . . Parts Lost 44 | . . . . . 4 3 1 2 . 14 1 10 2 . 2 5 Power 6 | . . . . . 1 . . . . 2 . 1 1 . . 1 Propulsion 9 | . . . . . . . . . . 3 . 3 . . . 3 Utility 19 | . . . . . 1 2 1 1 . 5 . 6 . . 2 1 Weapon 10 | . . . . . 2 1 . 1 . 4 1 . 1 . . . Highest Loss Streak 14 | . . . . . 2 2 1 2 . 14 1 8 2 . 2 7 Average Slot Usage (%) 96 | . 88 100 100 100 99 99 100 98 100 93 93 87 84 86 86 66 Engine 3 | . 7 . . . 5 6 7 7 7 2 . . . . . . Core 3 | . 6 14 14 14 3 . . . . . . . . . . . Reactor 1 | . . . . . . . . . . 3 7 5 5 6 6 1 Treads 18 | . 14 27 28 28 18 23 23 22 23 12 . . . . . . Hover 4 | . . . . . . . . . . 8 23 21 26 26 26 23 Device 7 | . . . . . 5 6 7 5 7 9 15 14 14 20 20 18 Storage 8 | . 14 14 14 14 9 7 7 7 7 9 15 2 2 3 6 6 Processor 6 | . 2 . . . 10 7 7 7 7 8 7 12 6 6 6 6 Protection 17 | . 1 14 14 14 19 23 23 23 23 14 7 8 13 13 13 2 Energy Gun 1 | . 6 . . . 6 . . . . 7 8 . . . . . Energy Cannon 1 | . 7 11 . . . . . . . . . . . . . . Ballistic Gun 10 | . 8 . . . 10 22 23 22 21 10 . . . . . . Ballistic Cannon 6 | . 4 16 28 28 9 . . . . . . . . . . . Piercing Weapon 1 | . . . . . . . . . 1 1 7 6 6 6 6 6 Naked Turns . | . . . . . . . . . . . . . . . . . Heaviest Build 81 | 10 18 18 22 30 64 71 81 81 81 79 61 59 40 38 38 25 Greatest Support 88 | 40 16 42 42 42 42 69 69 69 69 78 78 88 88 88 88 88 Greatest Overweight (x) 2 | . 1 1 . . 1 1 1 1 1 2 . 1 . . . . Average Overweight (x) . | . . . . . . . 1 1 1 . . . . . . . Largest Inventory Capacity 12 | 6 6 6 8 10 12 12 12 12 12 12 12 12 8 8 8 8 Average Capacity 9 | 5 6 6 6 8 10 12 12 12 12 12 12 5 5 6 8 8 Most Carried 12 | 3 6 6 6 9 11 12 12 11 12 12 12 12 5 8 8 5 Average Carried 8 | 1 4 5 6 7 9 11 11 9 11 9 12 5 3 5 5 4 Final Capacity 12 | 6 6 6 8 10 12 12 12 12 12 12 12 8 4 8 8 8 Final Carried 12 | 3 6 6 6 9 11 12 11 11 12 12 12 5 3 8 5 3 Class Distribution -------------------- 43% | Tank 31% | Mutant 13% | Scavenger-Mutant 6% | Scavenger-Tank 3% | Scavenger-Sprinter Dominant Class ---------------- Mutant | -10/Materials Mutant | -10/Mines Mutant | -10/Exiles Mutant | -9/Mines Scavenger-Tank | -8/Materials Tank | -7/Factory Tank | -7/Lower Caves Tank | -7/Lower Caves Tank | -7/Zion Scavenger-Mutant | -7/Deep Caves Scavenger-Sprinter | -6/Proximity Caves Scavenger-Mutant | -6/Factory Mutant | -6/Lower Caves Scavenger-Mutant | -6/Lower Caves Scavenger-Mutant | -6/Data Miner Scavenger-Mutant | -5/Proximity Caves Resources | -11 -10 -10 -10 -9 -8 -7 -7 -7 -7 -7 -6 -6 -6 -6 -6 -5 ----------- Run | Scr Mat Min Exi Min Mat Fac Low Low Zio Dee Pro Fac Low Low Dat Pro Matter Collected 3028 | 240 33 152 . 28 923 473 186 239 48 272 21 318 80 10 . 5 Remotely . | . . . . . . . . . . . . . . . . . Salvage Created 4198 | . 93 252 . . 1461 688 244 416 58 319 . 457 163 27 20 . Parts 219 | . 6 14 . . 83 23 17 14 3 27 . 21 8 . 3 . Haulers Intercepted 7 | . . . . . 4 2 . . . . . 1 . . . . Recyclers Shooed 2 | . . . . . 1 1 . . . . . . . . . . Parts Field Recycled . | . . . . . . . . . . . . . . . . . Retrieved Matter . | . . . . . . . . . . . . . . . . . Parts Self-Destructed 30 | . . . . . . . 17 4 4 . . . 5 . . . Prevented 1 | . . . . . . . . 1 . . . . . . . . Kills | -11 -10 -10 -10 -9 -8 -7 -7 -7 -7 -7 -6 -6 -6 -6 -6 -5 ------- Run | Scr Mat Min Exi Min Mat Fac Low Low Zio Dee Pro Fac Low Low Dat Pro Combat Hostiles Destroyed 75 | . 2 4 . 1 31 11 6 7 1 3 . 5 4 . . . Melee 9 | . . . . . . . . . . . . 5 4 . . . Guns 37 | . 1 . . . 12 8 6 6 1 3 . . . . . . Cannons 19 | . 1 4 . 1 13 . . . . . . . . . . . AOE 9 | . . . . . 5 3 . 1 . . . . . . . . Classes Destroyed 18 | . 1 3 . 1 6 1 . . 1 2 . 1 1 1 . . Worker 4 | . . 1 . . 3 . . . . . . . . . . . Builder 1 | . . . . . 1 . . . . . . . . . . . Tunneler 1 | . . . . . 1 . . . . . . . . . . . Hauler 7 | . . . . . 4 2 . . . . . 1 . . . . Recycler 5 | . . 1 . . 1 2 . . . . . 1 . . . . Minesweeper 1 | . . . . . . . . . . . . . . 1 . . Watcher 2 | . . . . . 2 . . . . . . . . . . . Swarmer 19 | . . 3 . . 5 1 3 . . . . 3 4 . . . Grunt 36 | . 2 2 . . 19 9 2 2 . . . . . . . . Brawler 2 | . . . . . . 1 . 1 . . . . . . . . Sentry 8 | . . . . . 6 . 1 . . . . 1 . . . . Demolisher 1 | . . . . 1 . . . . . . . . . . . . Hunter 1 | . . . . . 1 . . . . . . . . . . . Programmer 1 | . . . . . . . . . . . . 1 . . . . Z-Technician 4 | . . . . . . . . . . 4 . . . . . . Z-Light 2 | . . . . . . . . . . 2 . . . . . . Samaritan 1 | . . . . . . . . . . . . . 1 . . . Thug 4 | . . . . . . . . 4 . . . . . . . . Mutant 1 | . . . . . . . . . 1 . . . . . . . Best Kill Streak 9 | . 2 3 . 1 9 4 3 4 1 4 . 3 2 1 1 . Combat Bots Only 7 | . 2 3 . 1 7 4 3 4 1 3 . 3 2 . . . Max Kills in Single Turn 3 | . 1 2 . 1 3 2 1 1 1 1 . 1 1 1 1 . Gunslinging . | . . . . . . . . . . . . . . . . . Exploded 2 | . . . . . 2 2 . 1 . . . . . . . . Melee 1 | . . . . . . . . . . . . 1 1 . . . Uniques/NPCs Destroyed 2 | . . . . . . . . . . 1 . . . . 1 . Z-Imprinter (-7/Deep Caves) Data Miner (-6/Data Miner) Combat | -11 -10 -10 -10 -9 -8 -7 -7 -7 -7 -7 -6 -6 -6 -6 -6 -5 -------- Run | Scr Mat Min Exi Min Mat Fac Low Low Zio Dee Pro Fac Low Low Dat Pro Damage Taken 9115 | . 40 141 . 36 1551 1012 516 636 59 2189 67 1193 632 . 136 907 Core 1423 | . 18 14 . . 187 9 50 44 . 237 . 508 76 . . 280 Absorbed by Shields . | . . . . . . . . . . . . . . . . . Core Remaining (%) 76 | 100 . . . 87 66 . . . . . 51 . . . . . Volleys Fired 210 | . 7 14 . 1 81 41 19 17 3 27 . . . . . . Largest 3 | . 2 2 . 2 3 3 3 3 3 3 . . . . . . Hottest 123 | . 76 95 . 78 117 71 71 91 123 75 . . . . . . Shots Fired 556 | . 14 28 . 2 219 112 56 48 9 68 . . . . . . Gun 418 | . 10 . . . 119 109 56 47 9 68 . . . . . . Cannon 127 | . 4 28 . 2 93 . . . . . . . . . . . Launcher 11 | . . . . . 7 3 . 1 . . . . . . . . Special . | . . . . . . . . . . . . . . . . . Kinetic 464 | . 7 17 . 2 160 109 56 40 6 67 . . . . . . Thermal 7 | . 3 . . . . . . . 3 1 . . . . . . Explosive 11 | . . . . . 7 3 . 1 . . . . . . . . Electromagnetic 74 | . 4 11 . . 52 . . 7 . . . . . . . . Robot Hit Streak 19 | . 3 6 . 3 14 18 16 19 9 11 . . . . . . Robot Miss Streak 8 | . 2 4 . . 2 6 4 2 . 8 . . . . . . Penetration Max . | . . . . . . . . . . . . . . . . . Secondary Targets 12 | . . . . . 3 1 4 3 . 1 . . . . . . Max Gunslinging Chain 1 | . . . . . 1 1 1 1 . 1 . . . . . . Shots Hit Robots 409 | . 8 15 . 2 154 79 39 37 10 39 . 10 11 4 1 . Core Hits 199 | . 5 9 . 2 81 27 14 22 4 20 . 7 5 2 1 . Critical Hits 9 | . . 2 . . 4 2 . . 1 . . . . . . . Critical Kills 5 | . . 1 . . 2 2 . . . . . . . . . . Critical Parts Destroyed 4 | . . 1 . . 2 . . . 1 . . . . . . . Melee Attacks 147 | . . . . . . . . . 61 16 2 25 28 5 10 . Impact . | . . . . . . . . . . . . . . . . . Slashing 21 | . . . . . . . . . . . . 9 12 . . . Piercing 126 | . . . . . . . . . 61 16 2 16 16 5 10 . Sneak Attacks 13 | . . . . . . . . . 1 5 . 3 2 1 1 . Combat Hostiles . | . . . . . . . . . . . . . . . . . Follow-up Attacks 5 | . . . . . . . . . . . . 2 3 . . . Damage Inflicted 10716 | . 141 402 . 61 3887 1447 573 861 260 1337 . 704 684 238 121 . Guns 4313 | . 49 . . . 1283 961 573 605 152 690 . . . . . . Cannons 1776 | . 92 392 . 48 1244 . . . . . . . . . . . Explosions 2045 | . . . . . 1343 446 . 256 . . . . . . . . Melee 2502 | . . . . . . . . . 108 647 . 704 684 238 121 . Ramming 80 | . . 10 . 13 17 40 . . . . . . . . . . Kinetic 4785 | . 24 197 . 48 1753 961 573 484 89 656 . . . . . . Thermal 812 | . 25 . . . 626 . . 64 63 34 . . . . . . Explosive 1355 | . . . . . 717 446 . 192 . . . . . . . . Electromagnetic 1182 | . 92 195 . . 774 . . 121 . . . . . . . . Impact . | . . . . . . . . . . . . . . . . . Slashing 1008 | . . . . . . . . . . . . 452 556 . . . Piercing 1494 | . . . . . . . . . 108 647 . 252 128 238 121 . Highest Corruption 3 | . . . . . 1 3 3 3 3 . . 2 2 2 2 2 Average Corruption 2 | . . . . . 1 2 3 3 3 . . 2 2 2 2 2 Corruption Purged . | . . . . . . . . . . . . . . . . . Effects 45 | . . . . . 8 3 12 8 . . . 3 2 5 3 1 Message Errors 11 | . . . . . 2 . 2 3 . . . 1 1 . 2 . Matter Fused 3 | . . . . . . . 2 1 . . . . . . . . Heat Flow Errors 5 | . . . . . . . 1 1 . . . . . 2 . 1 Energy Discharges 5 | . . . . . 1 . 2 . . . . . . 2 . . Data Loss (minor) 6 | . . . . . 1 1 2 . . . . 1 . 1 . . Targeting Errors 12 | . . . . . 4 1 2 2 . . . 1 1 . 1 . Weapon Failures 3 | . . . . . . 1 1 1 . . . . . . . . Overload Shots . | . . . . . . . . . . . . . . . . . Overflow Damage 657 | . . . . . 129 1 . . . 70 . 161 188 108 . . Projectiles 17 | . . . . . 17 . . . . . . . . . . . Explosions 113 | . . . . . 112 1 . . . . . . . . . . Melee 527 | . . . . . . . . . . 70 . 161 188 108 . . Knockbacks 20 | . . 5 . . 15 . . . . . . . . . . . Impact . | . . . . . . . . . . . . . . . . . Kinetic 19 | . . 5 . . 14 . . . . . . . . . . . Secondary 1 | . . . . . 1 . . . . . . . . . . . Self-Inflicted Damage 97 | . . . . . 60 . . 37 . . . . . . . . Shots 3 | . . . . . 2 . . 1 . . . . . . . . Rammed 14 | . . 1 . 2 6 5 . . . . . . . . . . Targets Rammed 17 | . . 2 . 2 7 6 . . . . . . . . . . Kicked . | . . . . . . . . . . . . . . . . . Crushed 3 | . . 1 . . 1 1 . . . . . . . . . . Highest Temperature 429 | . 125 234 . 24 429 215 107 360 158 189 . 14 8 163 . 242 Average Temperature 97 | . 49 78 . 14 121 46 16 147 81 104 . 14 4 70 . 159 Received Heat Transfer 2178 | . 21 18 . . 639 252 60 279 . 639 15 129 . . 18 108 Effects 3 | . . . . . 3 . . . . . . . . . . . Shutdowns 1 | . . . . . 1 . . . . . . . . . . . Interference 2 | . . . . . 2 . . . . . . . . . . . Siege Activations . | . . . . . . . . . . . . . . . . . Robots Corrupted 1 | . . . . . 1 . . . . . . . . . . . Combat Hostiles 1 | . . . . . 1 . . . . . . . . . . . Parts Fried 6 | . . 1 . . 5 . . . . . . . . . . . Impact Corruptions 1 | . . . . . 1 . . . . . . . . . . . Robots Melted . | . . . . . . . . . . . . . . . . . Combat Hostiles . | . . . . . . . . . . . . . . . . . Parts Melted . | . . . . . . . . . . . . . . . . . Heat Transferred 722 | . 74 . . . 450 . . 50 111 37 . . . . . . Parts Sabotaged . | . . . . . . . . . . . . . . . . . Parts Stolen . | . . . . . . . . . . . . . . . . . Parts Stripped . | . . . . . . . . . . . . . . . . . Power Chain Reactions 4 | . . . . . 3 . . 1 . . . . . . . . Missiles Intercepted . | . . . . . . . . . . . . . . . . . Alert | -11 -10 -10 -10 -9 -8 -7 -7 -7 -7 -7 -6 -6 -6 -6 -6 -5 ------- Run | Scr Mat Min Exi Min Mat Fac Low Low Zio Dee Pro Fac Low Low Dat Pro Peak Influence 1014 | . 92 105 . 21 1014 613 . . . . . 356 . . . . Initial 417 | . . 35 . . . 417 . . . . . 31 . . . . Average 290 | . 53 59 . 3 585 491 . . . . . 169 . . . . Maximum Alert Level 3 | . . . . . 3 2 . . . . . 1 . . . . Low Security (%) 53 | 100 100 100 . 100 12 . . . . . . 68 . . . . Level 1 12 | . . . . . 22 5 . . . . . 31 . . . . Level 2 20 | . . . . . 11 94 . . . . . . . . . . Level 3 14 | . . . . . 53 . . . . . . . . . . . Level 4 . | . . . . . . . . . . . . . . . . . Level 5 . | . . . . . . . . . . . . . . . . . High Security . | . . . . . . . . . . . . . . . . . Max Security . | . . . . . . . . . . . . . . . . . Squads Dispatched 16 | . 1 1 . . 6 3 . . . . . 4 . 1 . . Investigation 7 | . 1 1 . . 2 1 . . . . . 2 . . . . Extermination 2 | . . . . . . 1 . . . . . 1 . . . . Reinforcement 5 | . . . . . 3 1 . . . . . 1 . . . . Assault 2 | . . . . . 1 . . . . . . . . 1 . . Garrison . | . . . . . . . . . . . . . . . . . Intercept . | . . . . . . . . . . . . . . . . . Construction Impeded 1 | . . . . . 1 . . . . . . . . . . . Haulers Reinforced 1 | . . . . . . 1 . . . . . . . . . . Stealth | -11 -10 -10 -10 -9 -8 -7 -7 -7 -7 -7 -6 -6 -6 -6 -6 -5 --------- Run | Scr Mat Min Exi Min Mat Fac Low Low Zio Dee Pro Fac Low Low Dat Pro Distress Signals 7 | . . . . . 5 1 . . . . . 1 . . . . Communications Jammed . | . . . . . . . . . . . . . . . . . Distress Signals . | . . . . . . . . . . . . . . . . . Times Spotted 150 | . 4 4 . 1 51 17 7 10 1 3 4 26 7 1 4 10 Peak Tracking Total 8 | . 2 2 . . 7 4 3 4 1 3 3 7 4 6 4 8 Tactical Retreats 35 | . 1 . . . 12 3 1 2 . . 4 7 3 1 . 1 Traps | -11 -10 -10 -10 -9 -8 -7 -7 -7 -7 -7 -6 -6 -6 -6 -6 -5 ------- Run | Scr Mat Min Exi Min Mat Fac Low Low Zio Dee Pro Fac Low Low Dat Pro Traps Triggered 6 | . 1 . . . 1 4 . . . . . . . . . . Indirectly . | . . . . . . . . . . . . . . . . . Trap Hack Attempts . | . . . . . . . . . . . . . . . . . Triggered . | . . . . . . . . . . . . . . . . . Disarmed . | . . . . . . . . . . . . . . . . . Reprogrammed . | . . . . . . . . . . . . . . . . . Reused 1 | . . . . . . . . . . . . . . . 1 . Traps Extracted . | . . . . . . . . . . . . . . . . . Installed 6 | . . . . . . . . . . . . . . . 6 . Triggered 1 | . . . . . . . . . . . 1 . . . . . Machines | -11 -10 -10 -10 -9 -8 -7 -7 -7 -7 -7 -6 -6 -6 -6 -6 -5 ---------- Run | Scr Mat Min Exi Min Mat Fac Low Low Zio Dee Pro Fac Low Low Dat Pro Machines Disabled 11 | . . . . . 9 . . . . 1 . 1 . . . . Max in Single Turn 4 | . . . . . 4 . . . . 1 . 1 . . . . Machines Sabotaged . | . . . . . . . . . . . . . . . . . Garrisons Compromised . | . . . . . . . . . . . . . . . . . Overloaded Fab Kills . | . . . . . . . . . . . . . . . . . Fab Network Shutdowns . | . . . . . . . . . . . . . . . . . Hacking | -11 -10 -10 -10 -9 -8 -7 -7 -7 -7 -7 -6 -6 -6 -6 -6 -5 --------- Run | Scr Mat Min Exi Min Mat Fac Low Low Zio Dee Pro Fac Low Low Dat Pro Machines Accessed 22 | . 2 1 1 . 3 1 . . 1 . . 9 . . 4 . Terminals 13 | . 2 . . . 3 1 . . . . . 7 . . . . Fabricators 1 | . . . . . . . . . . . . 1 . . . . Repair Stations . | . . . . . . . . . . . . . . . . . Recycling Units . | . . . . . . . . . . . . . . . . . Scanalyzers 1 | . . . . . . . . . . . . 1 . . . . Garrison Access . | . . . . . . . . . . . . . . . . . Total Hacks 76 | . 6 1 1 . 12 2 . . 4 . . 21 . . 29 . Successful 56 | . 3 1 1 . 4 1 . . 4 . . 13 . . 29 . Failed 20 | . 3 . . . 8 1 . . . . . 8 . . . . Catastrophic 4 | . . . . . 2 1 . . . . . 1 . . . . Database Lockouts . | . . . . . . . . . . . . . . . . . Manual 32 | . 3 . . . 10 2 . . 4 . . 13 . . . . Terminals 33 | . 6 . . . 12 2 . . . . . 13 . . . . Fabricators 7 | . . . . . . . . . . . . 7 . . . . Repair Stations . | . . . . . . . . . . . . . . . . . Recycling Units . | . . . . . . . . . . . . . . . . . Scanalyzers 1 | . . . . . . . . . . . . 1 . . . . Garrison Access . | . . . . . . . . . . . . . . . . . Terminal Hacks 46 | . 3 1 1 . 3 1 . . 4 . . 4 . . 29 . Record 12 | . . . 1 . . . . . . . . . . . 11 . Part Schematic 15 | . . . . . . . . . 4 . . 1 . . 10 . Robot Schematic 5 | . . . . . . . . . . . . . . . 5 . Robot Analysis 3 | . 3 . . . . . . . . . . . . . . . Prototype ID Bank 3 | . . . . . . . . . . . . . . . 3 . Open Door 1 | . . 1 . . . . . . . . . . . . . . Branch Access Points 2 | . . . . . 1 1 . . . . . . . . . . Machine Index 1 | . . . . . . . . . . . . 1 . . . . Terminal Index 2 | . . . . . 1 . . . . . . 1 . . . . Garrison Index 1 | . . . . . . . . . . . . 1 . . . . Alert Level 1 | . . . . . 1 . . . . . . . . . . . Fabricator Hacks 3 | . . . . . . . . . . . . 3 . . . . Load Schematic 1 | . . . . . . . . . . . . 1 . . . . Build 2 | . . . . . . . . . . . . 2 . . . . Repair Station Hacks . | . . . . . . . . . . . . . . . . . Recycling Unit Hacks . | . . . . . . . . . . . . . . . . . Scanalyzer 1 | . . . . . . . . . . . . 1 . . . . Insert Component 1 | . . . . . . . . . . . . 1 . . . . Garrison Access Hacks . | . . . . . . . . . . . . . . . . . Unauthorized Hacks 6 | . . . . . 1 . . . . . . 5 . . . . Terminals 4 | . . . . . 1 . . . . . . 3 . . . . Botnet 4 | . . . . . 1 . . . . . . 3 . . . . Fabricators 2 | . . . . . . . . . . . . 2 . . . . Prioritize 1 | . . . . . . . . . . . . 1 . . . . Siphon 1 | . . . . . . . . . . . . 1 . . . . Repair Stations . | . . . . . . . . . . . . . . . . . Recycling Units . | . . . . . . . . . . . . . . . . . Scanalyzers . | . . . . . . . . . . . . . . . . . Garrison Access . | . . . . . . . . . . . . . . . . . Data Cores Recovered . | . . . . . . . . . . . . . . . . . Used . | . . . . . . . . . . . . . . . . . Hacking Detections 15 | . 2 . . . 3 1 . . . . . 9 . . . . Full Trace Events 5 | . 1 . . . 2 . . . . . . 2 . . . . Feedback Events . | . . . . . . . . . . . . . . . . . Feedback Blocked . | . . . . . . . . . . . . . . . . . Robot Schematics Acquired 5 | . . . . . . . . . . . . . . . 5 . Robots Built . | . . . . . . . . . . . . . . . . . Matter . | . . . . . . . . . . . . . . . . . Time . | . . . . . . . . . . . . . . . . . Total Robot Build Rating . | . . . . . . . . . . . . . . . . . Part Schematics Acquired 15 | . . . . . . . . . 4 . . 1 . . 10 . Parts Built 4 | . . . . . . . . . . . . 4 . . . . Matter 284 | . . . . . . . . . . . . 284 . . . . Time 94 | . . . . . . . . . . . . 94 . . . . Total Part Build Rating 20 | . . . . . . . . . . . . 20 . . . . Parts Repaired . | . . . . . . . . . . . . . . . . . Time . | . . . . . . . . . . . . . . . . . Parts Recycled . | . . . . . . . . . . . . . . . . . Recycled Matter . | . . . . . . . . . . . . . . . . . Retrieved Matter . | . . . . . . . . . . . . . . . . . Retrieved Components . | . . . . . . . . . . . . . . . . . Parts Scanalyzed . | . . . . . . . . . . . . . . . . . Part Schematics Acquired . | . . . . . . . . . . . . . . . . . Parts Damaged . | . . . . . . . . . . . . . . . . . Bothacking | -11 -10 -10 -10 -9 -8 -7 -7 -7 -7 -7 -6 -6 -6 -6 -6 -5 ------------ Run | Scr Mat Min Exi Min Mat Fac Low Low Zio Dee Pro Fac Low Low Dat Pro Used RIF Installer . | . . . . . . . . . . . . . . . . . Robots Hacked . | . . . . . . . . . . . . . . . . . Non-combat . | . . . . . . . . . . . . . . . . . Combat . | . . . . . . . . . . . . . . . . . Robot Hacks Applied . | . . . . . . . . . . . . . . . . . Relay Couplers Released . | . . . . . . . . . . . . . . . . . Robots Rewired . | . . . . . . . . . . . . . . . . . Allies Hacked . | . . . . . . . . . . . . . . . . . Hacks Repelled . | . . . . . . . . . . . . . . . . . Allies | -11 -10 -10 -10 -9 -8 -7 -7 -7 -7 -7 -6 -6 -6 -6 -6 -5 -------- Run | Scr Mat Min Exi Min Mat Fac Low Low Zio Dee Pro Fac Low Low Dat Pro Total Allies 3 | . . 3 . . . . . . . . . . . . . . Largest Group 3 | . . 3 2 2 1 . . . . . . . . . . . Highest-Rated Group 40 | . . 40 24 24 8 . . . . . . . . . . . Highest-Rated Ally 16 | . . 16 16 16 8 . . . . . . . . . . . Total Orders . | . . . . . . . . . . . . . . . . . Ally Attacks 16 | . . 15 . 1 . . . . . . . . . . . . Total Damage 166 | . . 166 . . . . . . . . . . . . . . Kills 1 | . . 1 . . . . . . . . . . . . . . Allies Corrupted . | . . . . . . . . . . . . . . . . . Allies Melted . | . . . . . . . . . . . . . . . . . Intel | -11 -10 -10 -10 -9 -8 -7 -7 -7 -7 -7 -6 -6 -6 -6 -6 -5 ------- Run | Scr Mat Min Exi Min Mat Fac Low Low Zio Dee Pro Fac Low Low Dat Pro Robot Analysis Total 3 | . 3 . . . . . . . . . . . . . . . Derelict Logs Recovered 6 | . . 1 . . . . 1 1 1 . 1 . 1 . . . Drone Launches . | . . . . . . . . . . . . . . . . . Drone Recoveries . | . . . . . . . . . . . . . . . . . Exploration | -11 -10 -10 -10 -9 -8 -7 -7 -7 -7 -7 -6 -6 -6 -6 -6 -5 ------------- Run | Scr Mat Min Exi Min Mat Fac Low Low Zio Dee Pro Fac Low Low Dat Pro Turns Passed 9769 | 66 175 1024 441 562 1265 850 501 442 2006 641 189 713 253 408 169 64 Spaces Moved 6534 | 48 135 661 290 342 545 404 248 207 835 439 445 1002 218 460 156 99 Core 9 | 9 . . . . . . . . . . . . . . . . Treads 3673 | 16 . 620 290 342 545 404 248 207 835 166 . . . . . . Legs . | . . . . . . . . . . . . . . . . . Wheels 199 | 23 135 41 . . . . . . . . . . . . . . Hover 2653 | . . . . . . . . . . 273 445 1002 218 460 156 99 Flight . | . . . . . . . . . . . . . . . . . Fastest Speed 26 | 50 100 110 152 152 152 160 180 180 180 26 26 26 34 34 34 34 Average Speed 117 | 110 103 146 152 152 168 171 180 180 180 87 26 54 61 64 61 62 Slowest Speed 200 | 160 110 152 152 152 180 180 180 180 180 200 52 130 68 68 68 76 Overloaded Moves . | . . . . . . . . . . . . . . . . . Propulsion Burnouts . | . . . . . . . . . . . . . . . . . Robots Hopped . | . . . . . . . . . . . . . . . . . Cave-ins Triggered . | . . . . . . . . . . . . . . . . . Exploration Rate (%) 49 | 4 32 98 66 76 60 16 51 36 84 70 56 21 37 31 79 20 Regions Visited 16 Branch Regions 12 Pre-discovered Areas 2 | . . 1 . . . . . . . . . . . . 1 . Known Exits Taken 2 | . . . . . . 1 . . . . . 1 . . . . Unknown Exits Taken 14 | 1 1 1 1 1 1 . 1 1 1 1 1 . 1 1 1 . Scrap Searched 12 | . . 1 . 2 . . 2 . 3 . 1 . 1 1 . 1 Spaces Dug 23 | . . . . . 17 . . . 1 . 2 3 . . . . Terrain Destroyed 155 | . . 1 . . 120 15 . 13 1 . 2 3 . . . . Melee 6 | . . . . . . . . . 1 . 2 3 . . . . Projectile 3 | . . 1 . . 2 . . . . . . . . . . . AOE 146 | . . . . . 118 15 . 13 . . . . . . . . Terrain Rammed . | . . . . . . . . . . . . . . . . . Walls Destroyed . | . . . . . . . . . . . . . . . . . Machines Disabled . | . . . . . . . . . . . . . . . . . Actions | -11 -10 -10 -10 -9 -8 -7 -7 -7 -7 -7 -6 -6 -6 -6 -6 -5 --------- Run | Scr Mat Min Exi Min Mat Fac Low Low Zio Dee Pro Fac Low Low Dat Pro Total 7934 | 57 158 688 291 381 725 489 268 249 1211 623 513 1126 284 559 211 101 Wait 747 | . . 1 . 34 25 8 1 . 303 96 67 60 34 87 31 . Move 6518 | 47 134 660 289 341 544 403 247 206 834 438 444 1001 217 459 155 99 Hop . | . . . . . . . . . . . . . . . . . Pick Up 74 | 3 6 3 . 2 16 8 . 7 4 12 . 4 . 6 3 . Fast Attach 54 | 6 4 1 . . 12 4 . 2 . 11 . 14 . . . . Attach 51 | . 1 1 . . 8 5 1 8 1 10 . 10 3 1 . 2 Detach 6 | . . 1 . . 1 . . 1 . . . 1 2 . . . Swap 33 | 1 . 1 1 1 11 5 . 1 2 4 . 2 4 . . . Drop 79 | . 6 4 1 . 20 9 . 7 3 9 . 13 . 1 6 . Fire 210 | . 7 14 . 1 81 41 19 17 3 27 . . . . . . Melee 139 | . . . . . . . . . 61 16 2 21 24 5 10 . Ram . | . . . . . . . . . . . . . . . . . Kick . | . . . . . . . . . . . . . . . . . Crush 17 | . . 2 . 2 7 6 . . . . . . . . . . Escape Stasis . | . . . . . . . . . . . . . . . . . Rewire . | . . . . . . . . . . . . . . . . . Trap 6 | . . . . . . . . . . . . . . . 6 . Miscellaneous . | . . . . . . . . . . . . . . . . . Route ------- -11/Scrapyard -10/Materials -10/Mines (discovered 3 exits: [*Mat x2] / *Exi) -10/Exiles -9/Mines (discovered 2 exits: *Mat x2) -8/Materials (discovered 2 exits: *Fac x2) -7/Factory (discovered 2 exits: *Low x2) -7/Lower Caves -7/Lower Caves (discovered 2 exits: *Fac / *Zio) -7/Zion -7/Deep Caves -6/Proximity Caves -6/Factory (discovered 4 exits: *Fac x2 / *Low x2) -6/Lower Caves -6/Lower Caves -6/Data Miner -5/Proximity Caves History --------- Turn | Location | Event 6 | -11/Scrapyard | Discovered new exit (range 16) 67 | -11/Scrapyard | Entered Materials 199 | -10/Materials | Discovered new exit (range 10) 242 | -10/Materials | Entered Mines 296 | -10/Mines | Met a Derelict shopkeep closing up shop 332 | -10/Mines | Build established: Mutant 664 | -10/Mines | Learned location of Mines (-9) 748 | -10/Mines | Assisted by bots powering up and referring to "LRC-V3" 785 | -10/Mines | Discovered new exit (range 4) 813 | -10/Mines | Discovered new exit (range 11) 820 | -10/Mines | Received a Rocket Launcher from a helpful Derelict 1077 | -10/Mines | Deemed a non-threat by the Exiles lab entrance 1077 | -10/Mines | Discovered new exit (range 5) 1266 | -10/Mines | Entered Exiles 1266 | -10/Exiles | Found Exiles lab abandoned 1266 | -10/Exiles | Accompanied by 2 allies 1689 | -10/Exiles | Discovered new exit (range 12) 1707 | -10/Exiles | Entered Mines 1707 | -9/Mines | Accompanied by 2 allies 1708 | -9/Mines | Assembled infested the area 1936 | -9/Mines | Discovered new exit (range 8) 2104 | -9/Mines | Found a hidden stash of uninstalled traps 2119 | -9/Mines | Discovered new exit (range 10) 2269 | -9/Mines | Entered Materials 2269 | -8/Materials | Accompanied by 1 ally 2269 | -8/Materials | Evolved 4 slots: Utility x3, Weapon x1 2560 | -8/Materials | Build established: Tank 2701 | -8/Materials | Destroyed 7 combat bots 2791 | -8/Materials | Discovered new exit (range 15) 3469 | -8/Materials | First assault squad dispatched 3487 | -8/Materials | Build established: Scavenger-Tank 3518 | -8/Materials | Discovered new exit (range 3) 3534 | -8/Materials | Entered Factory 3534 | -7/Factory | Evolved 2 slots: Propulsion x1, Utility x1 3859 | -7/Factory | Build established: Tank 4068 | -7/Factory | Identified exit to Lower Caves 4384 | -7/Factory | Entered Lower Caves 4651 | -7/Lower Caves | Learned 4 Factory zone layouts 4693 | -7/Lower Caves | Spotted B-75 Beast 4787 | -7/Lower Caves | Attracted the attention of an 0b10 checkpoint 4817 | -7/Lower Caves | Discovered new exit (range 13) 4885 | -7/Lower Caves | Entered another Lower Caves area 4943 | -7/Lower Caves | Discovered new exit (range 8) 4949 | -7/Lower Caves | Ambushed by wild Derelicts 5235 | -7/Lower Caves | Learned Factory trap positions 5307 | -7/Lower Caves | Discovered new exit (range 4) 5321 | -7/Lower Caves | Spotted B-75 Beast 5327 | -7/Lower Caves | Entered Zion 5408 | -7/Zion | System corruption cleaned by Quarantine Array 5516 | -7/Zion | Given the Hacking Drone Bay 5516 | -7/Zion | Found Prototype Device 5842 | -7/Zion | Found CR-A16's Pointy Stick 6165 | -7/Zion | Acquired unknown access codes intercepted by a Zionite 6626 | -7/Zion | Opened final containment barrier to the Deep Caves 6950 | -7/Zion | Build established: Mutant 6951 | -7/Zion | Attacked by Zionites 6990 | -7/Zion | Discovered new exit (range 3) 6990 | -7/Zion | Saw the warning signs outside the Deep Caves entrance 7256 | -7/Zion | Build established: Tank 7333 | -7/Zion | Entered Deep Caves 7573 | -7/Deep Caves | Attacked by Z-Imprinter 7620 | -7/Deep Caves | Destroyed Z-Imprinter 7681 | -7/Deep Caves | Lost 14 parts (2p3n5u4w) 7682 | -7/Deep Caves | Found Prototype Device 7682 | -7/Deep Caves | Identified Zio. Metafield Generator 7847 | -7/Deep Caves | Z-Facility disabled 7959 | -7/Deep Caves | Found Surveybot 24 Chip 7961 | -7/Deep Caves | Found Surveybot 24 Scanner 7972 | -7/Deep Caves | Discovered new exit (range 6) 7974 | -7/Deep Caves | Entered Proximity Caves 8016 | -6/Proximity Caves | Attracted the attention of an 0b10 checkpoint 8158 | -6/Proximity Caves | Discovered new exit (range 9) 8158 | -6/Proximity Caves | Learned 4 Factory zone layouts 8163 | -6/Proximity Caves | Entered Factory 8163 | -6/Factory | Evolved 2 slots: Propulsion x1, Utility x1 8164 | -6/Factory | Identified exit to Lower Caves 8165 | -6/Factory | Identified exit to Factory 8166 | -6/Factory | Loaded intel: 87 trap records 8184 | -6/Factory | Identified Hacking Drone Bay 8318 | -6/Factory | Core integrity fell below 50% 8348 | -6/Factory | Lost 8 parts (1p2n5u) 8352 | -6/Factory | Discovered exit to Lower Caves (range 19) 8459 | -6/Factory | Discovered exit to Factory (range 24) 8533 | -6/Factory | Fabricated Cmb. Airjet (x2) 8585 | -6/Factory | Fabricated Cmb. Airjet? 8830 | -6/Factory | Build established: Scavenger-Mutant 8876 | -6/Factory | Entered Lower Caves 9051 | -6/Lower Caves | Spotted B-75 Beast 9108 | -6/Lower Caves | Discovered new exit (range 23) 9108 | -6/Lower Caves | Learned location of 2 exits from Factory 9129 | -6/Lower Caves | Entered another Lower Caves area 9132 | -6/Lower Caves | Discovered new exit (range 8) 9159 | -6/Lower Caves | Build established: Mutant 9351 | -6/Lower Caves | Encountered a Warlord checkpoint 9491 | -6/Lower Caves | Attracted the attention of an 0b10 outpost 9537 | -6/Lower Caves | Entered Data Miner 9537 | -6/Data Miner | Discovered new exit (range 6) 9550 | -6/Data Miner | Met Data Miner 9569 | -6/Data Miner | Learned location of Section 7 (-2) 9569 | -6/Data Miner | Acquired the access code to Warlord's prototype stash 9578 | -6/Data Miner | Received God Mode back door access code from Data Miner 9619 | -6/Data Miner | Destroyed Data Miner 9622 | -6/Data Miner | Build established: Scavenger-Mutant 9622 | -6/Data Miner | Found Prototype Hackware 9623 | -6/Data Miner | Found Prototype Hackware 9625 | -6/Data Miner | Found Prototype Hackware 9626 | -6/Data Miner | Data Conduit disabled 9706 | -6/Data Miner | Entered Proximity Caves 9737 | -5/Proximity Caves | Core integrity fell below 20% 9770 | -5/Proximity Caves | Destroyed by S-27 Virus with Autogun Last Messages --------------- 09619_ Data Miner destroyed. 09622_ Acquired Prototype Hackware. 09631_ System corrupted: CR-A16's Pointy Stick targeting data glitched. 09705_ Surveybot 24 Scanner destroyed. 09705_ Lyr. Medium Armor Plating destroyed. LOCATION=UNKNOWN GOAL=ESCAPE 09717_ System corrupted: Heat flow error (+277). 09721_ C-30 ARC bursts open, deploying its payload. 09721_ L-41 Fighter unfolds itself. 09721_ G-50 Soldier unfolds itself. 09721_ Zio. Light DM Reactor destroyed. 09731_ Propulsion Shielding destroyed. 09756_ Cmb. Airjet destroyed. 09769_ Searching scrap... 09769_ Found Imp. Power Shielding. 09769_ Found Lrg. Matter Pod. 09769_ Found Adv. Targeting Computer. 09769_ Found 36 Matter. 09770_ Acquired 5 matter. Map ----- +----------------------------------------------------+ | ?????????????????????????????????????????????????? | | ?????????????????????????????????????????????????? | | ?????????????????????????????????????????????????? | | ?????????????????????????????????????????????????? | | ?????????????????????????????????????????????????? | | ?????????????????????????????????????????????????? | | ?????????????????????????????????????????????????? | | ?????????????????????????????????????????????????? | | ?????????????????????????????????????????????????? | | ?????????????????????????????????????????????????? | | ?????????????????????????????????????????????????? | | ?????????????????????????????????????????????????? | | ?????????????????????????????????????????????????? | | ?????????????????????????????????????????????????? | | ?????????????????????????????????????????????????? | | ?????????????????#########???????????????????????? | | ??###????????????# ????????????????????????? | | #????????????# ?????????????????????????? | | #??????????## ???????????????????????????? | | #??????????# ????????????????????????????? | | # ??????###???# #?????????????????????????????? | | ? #?????# ##### ##????????????????????????????? | | ?# #?????# #????????????????????????????? | | ?# #????## s ####?????????????????????????? | | ?# ###?## s s ######????????????????????? | | ?# ### ###s !@ #????????????????????? | | ??# #?## ! !##????????????????????? | | ?## #??## #?????????????????????? | | ## ##???### ????????????????? | | # ###????## ??????????????? | | # ##????## ###?????????????? | | # #?????## #???????????????? | | ##??????# #???????????????? | | ##### #???????# ### ??????????????? | | ###??# #???????# #?? $ ?????????????? | | #???##???????# #??# ?????????????? | | # #????????????# #???### ?????????????? | | ## #######???????# ?????? ??????????????? | | ?## ### #???????## ???????????????????????? | | ??# ## #????###?## #??????????????????????? | | ?## #???## ######???????????????????????? | | ## ##???# ##????????????????????????? | | # #????? ##???????????????????????? | | ####### #???????????????????????? | | ### " #???????????????????????? | | # #?### "%" ##??????????????????????? | | ### ???# ##### ###????????????????????? | | ??####???# ##???????????????????? | | ??????# #???????????????????? | | ??????# ##### #???????????????????? | +----------------------------------------------------+ Best States ------------- Heat Dissipation 89 Energy Generation 27 Energy Capacity 1100 Matter Stores 300 Matter Capacity 300 Sight Range 16 Terrain Scan Range 24 Terrain Scan Density 2010 Armor Coverage 800 Resistance: KI 30 Resistance: EM 15 Core Shielding 20 Propulsion Shielding 66 Evasion (%) 63 Targeting Accuracy 6 Armor Integrity Analysis 33 Recoil Reduction 3 Salvage Targeting 1 Offensive Hacking 11 Item Schematics ----------------- Beamcaster | -7/Zion | Free Riot Gun | -7/Zion | Free Hvy. Riot Gun | -7/Zion | Free Battle Rifle | -7/Zion | Free Cmb. Airjet | -6/Factory | Hacked Combat Drone Bay | -6/Data Miner | Free Lgt. Regenerative Plating | -6/Data Miner | Free Cmb. Gravmag System | -6/Data Miner | Free Exp. Cesium-ion Thruster | -6/Data Miner | Free Triangulator | -6/Data Miner | Free Exp. Terrain Scanner | -6/Data Miner | Free Tactical Coordination Suite | -6/Data Miner | Free Exp. Transmission Jammer | -6/Data Miner | Free Plasma Sword | -6/Data Miner | Free Mni. Smartbomb Launcher | -6/Data Miner | Free Robot Schematics ------------------ S-27 Virus | -6/Data Miner | Free G-50 Soldier | -6/Data Miner | Free L-41 Fighter | -6/Data Miner | Free X-72 Disruptor | -6/Data Miner | Free I-36 Angel | -6/Data Miner | Free Fabricated ------------ Cmb. Airjet | x2 | -6/Factory Cmb. Airjet | x2 | -6/Factory Alien Tech Used ----------------- None Achievements -------------- None Challenges ------------ None Game ------ Seed ShieldThiefStick Manual? 0 Play Time 01:01:07 Cumulative 414.8 hours Start 2021.05.25 @ 18:37:20 End 2021.05.25 @ 19:40:24 Sessions 1 Manual Loads 0 Difficulty Rogue Special Mode None Game No. 318 Rogue 311 Adventurer 0 Explorer 7 Win Type - Total 17 Types 7/1/9/0/0/0/0/0/0 Lore% 80 Gallery% 93 Achievement% 77 Wizard Run 0 Options --------- ASCII 0 Keyboard 0 Movement Numpad Keybinds 0 Fullscreen 1 Font 18/X11Bold Map View 76x50 Tactical HUD 1 Map Filters NONE Filters NONE Steam 1 RUN: adf03905-926a-4870-bd68-f87ce043ed1b